[Event "DVM U12w 2023"]
[Site "Magdeburg"]
[Date "2023.12.29"]
[Round "6"]
[White "Böhrer, Lea Marie"]
[Black "Strahl, Nele"]
[Result "0-1"]
[WhiteElo "939"]
[BlackElo "783"]
[PlyCount "62"]
[EventDate "2022.12.27"]
[EventType "team-tourn"]
[EventRounds "7"]
[EventCountry "GER"]
[TimeControl "40/5400+30:1800+30"]
[WhiteClock "1:22:37"]
[BlackClock "0:59:05"]

1. e4 {[%emt 0:00:06]} e5 {[%emt 0:00:06]} 2. Nf3 {[%emt 0:00:02]} Nc6 {[%emt 0:00:10]} 3. Nc3 {[%emt 0:00:03]} Nf6 {[%emt 0:00:09]} 4. Bc4 {[%emt 0:00:04]} Bc5 {[%emt 0:00:07]} 5. d3 {[%emt 0:00:20]} O-O {[%emt 0:00:14]} 6. Bg5 {[%emt 0:00:11]} Re8 {[%emt 0:00:17]} 7. O-O {[%emt 0:00:36]} Be7 {[%emt 0:01:45]} 8. Re1 {[%emt 0:00:32]} d6 {[%emt 0:00:42]} 9. d4 {[%emt 0:00:49]} exd4 {[%emt 0:03:07]} 10. Nxd4 {[%emt 0:00:41]} Nxd4 {[%emt 0:00:12]} 11. Qxd4 {[%emt 0:00:17]} c5 {[%emt 0:02:10]} 12. Qd3 {[%emt 0:00:53]} Ng4 {[%emt 0:02:50]} 13. Bxe7 {[%emt 0:01:21]} Qxe7 {[%emt 0:00:43]} 14. Bb5 {[%emt 0:00:33]} Rf8 {[%emt 0:03:05]} 15. Nd5 {[%emt 0:01:10]} Qd8 {[%emt 0:01:51]} 16. Qf3 {[%emt 0:00:39]} b6 {[%emt 0:01:49]} 17. e5 {[%emt 0:01:04]} dxe5 {[%emt 0:00:57]} 18. Rad1 {[%emt 0:00:23]} a6 {[%emt 0:01:53]} 19. Nc3 {[%emt 0:01:42]} Qf6 {[%emt 0:05:37]} 20. Qxa8 {[%emt 0:00:49]} axb5 {[%emt 0:01:27]} 21. f3 {[%emt 0:00:57]} Qg6 {[%emt 0:03:07]} 22. Re4 {[%emt 0:01:29]} Bf5 {[%emt 0:02:07]} 23. Rd8 {[%emt 0:00:48]} Qd6 {[%emt 0:04:25]} 24. Re8 {[%emt 0:03:04]} Bxe4 {[%emt 0:01:11]} 25. fxg4 {[%emt 0:00:29]} Bxa8 {[%emt 0:03:09]} 26. Nxb5 {[%emt 0:00:51]} Qd2 {[%emt 0:00:59]} 27. Rxf8+ {[%emt 0:00:24]} Kxf8 {[%emt 0:00:17]} 28. h3 {[%emt 0:01:09]} e4 {[%emt 0:00:37]} 29. Kh2 {[%emt 0:00:16]} Qf4+ {[%emt 0:00:28]} 30. g3 {[%emt 0:01:10]} Qf2+ {[%emt 0:01:09]} 31. Kh1 {[%emt 0:00:31]} e3# {[%emt 0:00:15] normal} 0-1

[Event "DVM U12w 2023"]
[Site "Magdeburg"]
[Date "2023.12.29"]
[Round "6"]
[White "Schmegel, Alina"]
[Black "Khachaturyan, Viktoria"]
[Result "0-1"]
[WhiteElo "892"]
[BlackElo "987"]
[PlyCount "86"]
[EventDate "2022.12.27"]
[EventType "team-tourn"]
[EventRounds "7"]
[EventCountry "GER"]
[TimeControl "40/5400+30:1800+30"]
[WhiteClock "1:18:45"]
[BlackClock "1:13:09"]

1. e4 {[%emt 0:00:04]} e5 {[%emt 0:00:03]} 2. Nf3 {[%emt 0:00:05]} Nc6 {[%emt 0:00:07]} 3. Bb5 {[%emt 0:00:11]} d6 {[%emt 0:00:29]} 4. d3 {[%emt 0:00:08]} Nf6 {[%emt 0:00:56]} 5. Nc3 {[%emt 0:00:11]} d5 {[%emt 0:01:19]} 6. exd5 {[%emt 0:00:23]} Nxd5 {[%emt 0:00:29]} 7. Ne4 {[%emt 0:01:08]} Bg4 {[%emt 0:01:05]} 8. Nxe5 {[%emt 0:00:09]} Bxd1 {[%emt 0:00:33]} 9. Kxd1 {[%emt 0:00:14]} Ndb4 {[%emt 0:02:39]} 10. Bg5 {[%emt 0:01:47]} Qd5 {[%emt 0:00:54]} 11. Bh6 {[%emt 0:01:55]} Qxe5 {[%emt 0:02:28]} 12. Bg5 {[%emt 0:01:50]} Qxb5 {[%emt 0:00:20]} 13. Re1 {[%emt 0:00:43]} Be7 {[%emt 0:02:21]} 14. Bxe7 {[%emt 0:01:00]} Nxe7 {[%emt 0:00:14]} 15. Nc3 {[%emt 0:01:35]} Qh5+ {[%emt 0:00:22]} 16. f3 {[%emt 0:00:42]} Qxh2 {[%emt 0:00:29]} 17. a3 {[%emt 0:01:45]} Nbc6 {[%emt 0:00:32]} 18. Nb5 {[%emt 0:00:16]} O-O-O {[%emt 0:00:39]} 19. Kd2 {[%emt 0:00:55]} Rhe8 {[%emt 0:02:18]} 20. Rh1 {[%emt 0:00:24]} Qxg2+ {[%emt 0:00:18]} 21. Kc3 {[%emt 0:00:52]} Nd5+ {[%emt 0:00:44]} 22. Kb3 {[%emt 0:00:12]} Ne3 {[%emt 0:01:07]} 23. Rhc1 {[%emt 0:00:25]} Rd5 {[%emt 0:00:56]} 24. a4 {[%emt 0:01:46]} Qxf3 {[%emt 0:01:45]} 25. Nc3 {[%emt 0:00:30]} Na5+ {[%emt 0:01:25]} 26. Ka2 {[%emt 0:00:33]} Re6 {[%emt 0:03:39]} 27. Nxd5 {[%emt 0:00:16]} Qxd5+ {[%emt 0:00:09]} 28. b3 {[%emt 0:00:37]} Rb6 {[%emt 0:00:36]} 29. Rab1 {[%emt 0:00:29]} Nf5 {[%emt 0:00:46]} 30. Rh1 {[%emt 0:01:58]} Ng3 {[%emt 0:00:29]} 31. Rxh7 {[%emt 0:00:10]} Qc6 {[%emt 0:01:01]} 32. Rb2 {[%emt 0:01:14]} Ne2 {[%emt 0:00:34]} 33. Rh8+ {[%emt 0:00:23]} Kd7 {[%emt 0:00:09]} 34. c4 {[%emt 0:00:28]} Nc3+ {[%emt 0:00:29]} 35. Ka3 {[%emt 0:00:55]} Qf3 {[%emt 0:01:04]} 36. d4 {[%emt 0:02:28]} Qd1 {[%emt 0:00:31]} 37. Rhh2 {[%emt 0:01:33]} Qxd4 {[%emt 0:02:01]} 38. Rhd2 {[%emt 0:00:12]} Nb1+ {[%emt 0:00:31]} 39. Ka2 {[%emt 0:01:07]} Nxd2 {[%emt 0:00:15]} 40. Rxd2 {[%emt 0:01:05]} Qxd2+ {[%emt 0:00:07]} 41. Ka3 {[%emt 0:30:16]} Qc1+ {[%emt 0:31:10]} 42. Ka2 {[%emt 0:00:09]} Qc2+ {[%emt 0:00:33]} 43. Ka3 {[%emt 0:00:12]} Qxb3# {[%emt 0:00:15] normal} 0-1

[Event "DVM U12w 2023"]
[Site "Magdeburg"]
[Date "2023.12.29"]
[Round "6"]
[White "Gelbach, Julietta"]
[Black "Sauermann, Paula"]
[Result "0-1"]
[WhiteElo "887"]
[BlackElo "754"]
[PlyCount "58"]
[EventDate "2022.12.27"]
[EventType "team-tourn"]
[EventRounds "7"]
[EventCountry "GER"]
[TimeControl "40/5400+30:1800+30"]
[WhiteClock "1:29:45"]
[BlackClock "1:13:30"]

1. e4 {[%emt 0:00:01]} e5 {[%emt 0:00:07]} 2. Nf3 {[%emt 0:00:06]} Nc6 {[%emt 0:00:08]} 3. Bc4 {[%emt 0:00:11]} Bc5 {[%emt 0:00:14]} 4. d3 {[%emt 0:00:09]} d6 {[%emt 0:00:27]} 5. h3 {[%emt 0:00:10]} Be6 {[%emt 0:00:45]} 6. Bxe6 {[%emt 0:00:21]} fxe6 {[%emt 0:00:22]} 7. Nc3 {[%emt 0:00:31]} Nf6 {[%emt 0:00:29]} 8. Bg5 {[%emt 0:00:12]} h6 {[%emt 0:00:35]} 9. Bh4 {[%emt 0:00:06]} g5 {[%emt 0:01:06]} 10. Bg3 {[%emt 0:00:12]} Qe7 {[%emt 0:01:33]} 11. h4 {[%emt 0:00:46]} g4 {[%emt 0:00:54]} 12. Nd2 {[%emt 0:00:42]} O-O-O {[%emt 0:02:13]} 13. h5 {[%emt 0:00:30]} d5 {[%emt 0:02:10]} 14. Bh4 {[%emt 0:00:28]} Qf7 {[%emt 0:02:27]} 15. Na4 {[%emt 0:00:34]} Bd4 {[%emt 0:00:56]} 16. Nb3 {[%emt 0:01:22]} Bxf2+ {[%emt 0:00:50]} 17. Bxf2 {[%emt 0:00:16]} Rhf8 {[%emt 0:01:34]} 18. Qe2 {[%emt 0:00:56]} Nxh5 {[%emt 0:01:25]} 19. Rf1 {[%emt 0:01:27]} g3 {[%emt 0:00:59]} 20. Be3 {[%emt 0:00:35]} Qxf1+ {[%emt 0:00:36]} 21. Qxf1 {[%emt 0:00:34]} Rxf1+ {[%emt 0:00:14]} 22. Kxf1 {[%emt 0:00:13]} Rf8+ {[%emt 0:00:45]} 23. Ke1 {[%emt 0:00:25]} b6 {[%emt 0:01:02]} 24. Bxh6 {[%emt 0:00:10]} Rf2 {[%emt 0:00:59]} 25. Nd2 {[%emt 0:01:01]} Rxg2 {[%emt 0:02:46]} 26. Nf3 {[%emt 0:00:40]} Nd4 {[%emt 0:01:41]} 27. Kf1 {[%emt 0:00:24]} Rf2+ {[%emt 0:01:14]} 28. Kg1 {[%emt 0:01:40]} Nxf3+ {[%emt 0:01:28]} 29. Kh1 {[%emt 0:00:33]} Rh2# {[%emt 0:01:31] normal} 0-1

[Event "DVM U12w 2023"]
[Site "Magdeburg"]
[Date "2023.12.29"]
[Round "6"]
[White "Goy, Isabella"]
[Black "Martin, Helene"]
[Result "1/2-1/2"]
[WhiteElo "880"]
[BlackElo "989"]
[PlyCount "50"]
[EventDate "2022.12.27"]
[EventType "team-tourn"]
[EventRounds "7"]
[EventCountry "GER"]
[TimeControl "40/5400+30:1800+30"]
[WhiteClock "1:03:10"]
[BlackClock "0:39:56"]

1. e4 {[%emt 0:00:03]} c5 {[%emt 0:00:10]} 2. Nf3 {[%emt 0:00:21]} Nc6 {[%emt 0:00:06]} 3. Nc3 {[%emt 0:00:21]} d6 {[%emt 0:00:12]} 4. Bb5 {[%emt 0:00:25]} Bd7 {[%emt 0:00:14]} 5. h3 {[%emt 0:00:33]} Nf6 {[%emt 0:00:34]} 6. d3 {[%emt 0:00:37]} a6 {[%emt 0:00:44]} 7. Bxc6 {[%emt 0:00:36]} bxc6 {[%emt 0:00:30]} 8. Be3 {[%emt 0:01:10]} e6 {[%emt 0:00:42]} 9. O-O {[%emt 0:00:32]} Rb8 {[%emt 0:01:18]} 10. b3 {[%emt 0:00:26]} g6 {[%emt 0:03:34]} 11. Rb1 {[%emt 0:01:47]} Bg7 {[%emt 0:01:31]} 12. Qd2 {[%emt 0:00:37]} d5 {[%emt 0:02:20]} 13. exd5 {[%emt 0:01:06]} cxd5 {[%emt 0:00:10]} 14. Bxc5 {[%emt 0:00:22]} Bc6 {[%emt 0:28:55]} 15. Rfe1 {[%emt 0:05:46]} Bf8 {[%emt 0:03:53]} 16. Bxf8 {[%emt 0:01:23]} Kxf8 {[%emt 0:00:10]} 17. a4 {[%emt 0:08:31]} Kg7 {[%emt 0:05:39]} 18. Ng5 {[%emt 0:04:02]} Re8 {[%emt 0:00:40]} 19. Re2 {[%emt 0:02:33]} Qd6 {[%emt 0:02:02]} 20. Ra1 {[%emt 0:03:26]} d4 {[%emt 0:05:05]} 21. Nge4 {[%emt 0:01:36]} dxc3 {[%emt 0:03:03]} 22. Nxd6 {[%emt 0:01:21]} cxd2 {[%emt 0:00:06]} 23. Nxe8+ {[%emt 0:00:11]} Rxe8 {[%emt 0:00:33]} 24. Rxd2 {[%emt 0:00:16]} Nd5 {[%emt 0:00:38]} 25. Re2 {[%emt 0:01:49]} Nf4 {[%emt 0:00:15] normal} 1/2-1/2

[Event "DVM U12w 2023"]
[Site "Magdeburg"]
[Date "2023.12.29"]
[Round "6"]
[White "Satheesh, Yazhini"]
[Black "Seyedfakhari, Elena"]
[Result "1-0"]
[WhiteElo "859"]
[BlackElo "860"]
[PlyCount "71"]
[EventDate "2022.12.27"]
[EventType "team-tourn"]
[EventRounds "7"]
[EventCountry "GER"]
[TimeControl "40/5400+30:1800+30"]
[WhiteClock "1:09:46"]
[BlackClock "1:29:18"]

1. e4 {[%emt 0:00:03]} e5 {[%emt 0:00:07]} 2. Nf3 {[%emt 0:00:11]} Nc6 {[%emt 0:00:11]} 3. Nc3 {[%emt 0:00:20]} Nf6 {[%emt 0:00:12]} 4. Bb5 {[%emt 0:00:20]} a6 {[%emt 0:00:11]} 5. Bxc6 {[%emt 0:00:12]} dxc6 {[%emt 0:00:12]} 6. Nxe5 {[%emt 0:00:15]} Qd4 {[%emt 0:00:24]} 7. Nf3 {[%emt 0:01:00]} Qc4 {[%emt 0:00:45]} 8. d3 {[%emt 0:00:31]} Qc5 {[%emt 0:00:22]} 9. Bf4 {[%emt 0:00:53]} Bd6 {[%emt 0:00:47]} 10. Bxd6 {[%emt 0:00:45]} cxd6 {[%emt 0:00:19]} 11. h3 {[%emt 0:00:29]} O-O {[%emt 0:00:21]} 12. Qd2 {[%emt 0:00:39]} Be6 {[%emt 0:00:30]} 13. O-O-O {[%emt 0:00:34]} Qa5 {[%emt 0:00:56]} 14. Kb1 {[%emt 0:00:29]} d5 {[%emt 0:00:33]} 15. exd5 {[%emt 0:01:06]} Nxd5 {[%emt 0:00:34]} 16. Nxd5 {[%emt 0:00:37]} Qxd5 {[%emt 0:00:21]} 17. b3 {[%emt 0:00:29]} a5 {[%emt 0:00:45]} 18. Qg5 {[%emt 0:01:20]} f5 {[%emt 0:00:39]} 19. c4 {[%emt 0:03:18]} Qc5 {[%emt 0:00:42]} 20. Qd2 {[%emt 0:01:52]} Rad8 {[%emt 0:00:43]} 21. Qc2 {[%emt 0:01:49]} Rd6 {[%emt 0:01:11]} 22. Rhe1 {[%emt 0:01:08]} Rfd8 {[%emt 0:01:01]} 23. Ng5 {[%emt 0:01:09]} Bf7 {[%emt 0:00:25]} 24. Nxf7 {[%emt 0:00:26]} Kxf7 {[%emt 0:00:13]} 25. g4 {[%emt 0:01:47]} fxg4 {[%emt 0:00:14]} 26. hxg4 {[%emt 0:00:10]} Kg8 {[%emt 0:00:17]} 27. Re3 {[%emt 0:00:49]} Qg5 {[%emt 0:00:39]} 28. Rg1 {[%emt 0:01:12]} Qg6 {[%emt 0:00:47]} 29. Rgg3 {[%emt 0:01:06]} Rf8 {[%emt 0:00:54]} 30. Rg2 {[%emt 0:04:48]} Rdf6 {[%emt 0:00:18]} 31. c5 {[%emt 0:02:22]} Qh6 {[%emt 0:01:11]} 32. Qc4+ {[%emt 0:01:24]} Kh8 {[%emt 0:00:23]} 33. Re1 {[%emt 0:04:19]} Rxf2 {[%emt 0:00:34]} 34. Rxf2 {[%emt 0:00:14]} Rxf2 {[%emt 0:00:31]} 35. Re8+ {[%emt 0:00:15]} Rf8 {[%emt 0:00:08]} 36. Rxf8# {[%emt 0:00:23] normal} 1-0

[Event "DVM U12w 2023"]
[Site "Magdeburg"]
[Date "2023.12.29"]
[Round "6"]
[White "Slowik, Anna"]
[Black "Funke, Luise"]
[Result "0-1"]
[WhiteElo "842"]
[BlackElo "1018"]
[PlyCount "32"]
[EventDate "2022.12.27"]
[EventType "team-tourn"]
[EventRounds "7"]
[EventCountry "GER"]
[TimeControl "40/5400+30:1800+30"]
[WhiteClock "1:09:31"]
[BlackClock "1:12:47"]

1. e4 {[%emt 0:00:04]} e5 {[%emt 0:00:05]} 2. Nf3 {[%emt 0:00:07]} Nc6 {[%emt 0:00:07]} 3. Bc4 {[%emt 0:00:08]} Bc5 {[%emt 0:00:07]} 4. O-O {[%emt 0:00:17]} d6 {[%emt 0:00:14]} 5. c3 {[%emt 0:00:17]} Nf6 {[%emt 0:00:08]} 6. b4 {[%emt 0:00:56]} Bb6 {[%emt 0:00:21]} 7. a4 {[%emt 0:00:13]} a6 {[%emt 0:00:16]} 8. d3 {[%emt 0:01:51]} Bg4 {[%emt 0:00:59]} 9. Bxf7+ {[%emt 0:06:26]} Kxf7 {[%emt 0:00:21]} 10. Ng5+ {[%emt 0:00:13]} Ke7 {[%emt 0:06:04]} 11. Qb3 {[%emt 0:01:03]} Rf8 {[%emt 0:05:49]} 12. h3 {[%emt 0:01:57]} h6 {[%emt 0:01:41]} 13. hxg4 {[%emt 0:03:17]} hxg5 {[%emt 0:00:09]} 14. Bxg5 {[%emt 0:00:16]} Rh8 {[%emt 0:03:18]} 15. Nd2 {[%emt 0:05:43]} Qd7 {[%emt 0:05:22]} 16. Nf3 {[%emt 0:06:11]} Qxg4 {[%emt 0:00:42] normal} 0-1

[Event "DVM U12w 2023"]
[Site "Magdeburg"]
[Date "2023.12.29"]
[Round "6"]
[White "He, Siqi"]
[Black "Satheesh, Dharshini"]
[Result "1/2-1/2"]
[WhiteElo "812"]
[BlackElo "871"]
[PlyCount "179"]
[EventDate "2022.12.27"]
[EventType "team-tourn"]
[EventRounds "7"]
[EventCountry "GER"]
[TimeControl "40/5400+30:1800+30"]
[WhiteClock "1:20:16"]
[BlackClock "0:29:01"]

1. e4 {[%emt 0:00:02]} e5 {[%emt 0:00:00]} 2. Nf3 {[%emt 0:00:04]} Nc6 {[%emt 0:00:00]} 3. Bc4 {[%emt 0:00:09]} Bc5 {[%emt 0:00:22]} 4. d3 {[%emt 0:00:13]} Nf6 {[%emt 0:00:23]} 5. O-O {[%emt 0:00:09]} d6 {[%emt 0:00:22]} 6. c3 {[%emt 0:00:27]} h6 {[%emt 0:01:35]} 7. Re1 {[%emt 0:00:39]} Bg4 {[%emt 0:00:29]} 8. h3 {[%emt 0:00:11]} Bh5 {[%emt 0:00:37]} 9. Nbd2 {[%emt 0:00:19]} O-O {[%emt 0:00:23]} 10. Nf1 {[%emt 0:00:10]} a6 {[%emt 0:03:07]} 11. Ng3 {[%emt 0:00:08]} Bxf3 {[%emt 0:03:49]} 12. Qxf3 {[%emt 0:00:33]} b5 {[%emt 0:01:12]} 13. Bb3 {[%emt 0:00:19]} b4 {[%emt 0:01:12]} 14. Nh5 {[%emt 0:01:59]} Ne8 {[%emt 0:09:06]} 15. Qg3 {[%emt 0:01:02]} Kh7 {[%emt 0:03:05]} 16. Qf3 {[%emt 0:01:35]} g6 {[%emt 0:08:28]} 17. Ng3 {[%emt 0:00:44]} Qe7 {[%emt 0:02:03]} 18. Bd5 {[%emt 0:02:54]} Qd7 {[%emt 0:01:12]} 19. cxb4 {[%emt 0:01:08]} Nxb4 {[%emt 0:05:30]} 20. Bxa8 {[%emt 0:00:21]} Nc2 {[%emt 0:00:14]} 21. Be3 {[%emt 0:00:57]} Bxe3 {[%emt 0:01:10]} 22. Qe2 {[%emt 0:02:04]} Nxa1 {[%emt 0:00:32]} 23. Rxa1 {[%emt 0:00:15]} Bd4 {[%emt 0:00:33]} 24. Rc1 {[%emt 0:01:48]} Nf6 {[%emt 0:02:26]} 25. Bc6 {[%emt 0:00:17]} Qe6 {[%emt 0:00:47]} 26. a3 {[%emt 0:01:04]} Rb8 {[%emt 0:00:49]} 27. b4 {[%emt 0:00:52]} Rb6 {[%emt 0:02:48]} 28. Ba4 {[%emt 0:00:32]} c5 {[%emt 0:01:43]} 29. bxc5 {[%emt 0:00:14]} Bxc5 {[%emt 0:00:36]} 30. Qd1 {[%emt 0:00:53]} Bxa3 {[%emt 0:00:35]} 31. Ra1 {[%emt 0:01:13]} Bb2 {[%emt 0:01:41]} 32. Rb1 {[%emt 0:00:21]} Bd4 {[%emt 0:00:09]} 33. Rxb6 {[%emt 0:00:16]} Bxb6 {[%emt 0:00:09]} 34. Bb3 {[%emt 0:00:15]} Qe7 {[%emt 0:00:19]} 35. Qb1 {[%emt 0:00:19]} Bd8 {[%emt 0:01:00]} 36. Qa2 {[%emt 0:00:19]} a5 {[%emt 0:00:58]} 37. Bxf7 {[%emt 0:00:13]} Kg7 {[%emt 0:00:19]} 38. Bc4 {[%emt 0:00:29]} Qd7 {[%emt 0:01:33]} 39. Be6 {[%emt 0:01:45]} Qc6 {[%emt 0:00:47]} 40. Bc4 {[%emt 0:02:56]} Nd7 {[%emt 0:01:00]} 41. Bd5 {[%emt 0:31:09]} Qc1+ {[%emt 0:34:33]} 42. Nf1 {[%emt 0:00:32]} Nb8 {[%emt 0:03:38]} 43. Bb3 {[%emt 0:03:06]} Qc5 {[%emt 0:01:56]} 44. Qa4 {[%emt 0:00:49]} Qa7 {[%emt 0:02:44]} 45. Qc4 {[%emt 0:00:19]} h5 {[%emt 0:06:07]} 46. Qg8+ {[%emt 0:00:17]} Kh6 {[%emt 0:00:31]} 47. Qxd8 {[%emt 0:00:08]} a4 {[%emt 0:00:37]} 48. Ba2 {[%emt 0:00:18]} Nc6 {[%emt 0:00:27]} 49. Qxd6 {[%emt 0:00:40]} Qb6 {[%emt 0:02:20]} 50. Bd5 {[%emt 0:01:03]} Qa6 {[%emt 0:01:27]} 51. Bxc6 {[%emt 0:00:12]} a3 {[%emt 0:00:09]} 52. Nd2 {[%emt 0:01:14]} a2 {[%emt 0:03:15]} 53. Nb3 {[%emt 0:00:08]} a1=Q+ {[%emt 0:00:10]} 54. Nxa1 {[%emt 0:00:15]} Qxa1+ {[%emt 0:00:08]} 55. Kh2 {[%emt 0:00:18]} Qa6 {[%emt 0:00:16]} 56. Qf8+ {[%emt 0:00:18]} Kg5 {[%emt 0:00:37]} 57. Be8 {[%emt 0:00:46]} Qf6 {[%emt 0:00:44]} 58. Qxf6+ {[%emt 0:00:17]} Kxf6 {[%emt 0:00:07]} 59. g4 {[%emt 0:00:16]} hxg4 {[%emt 0:00:19]} 60. hxg4 {[%emt 0:00:13]} g5 {[%emt 0:00:15]} 61. Bd7 {[%emt 0:00:49]} Ke7 {[%emt 0:00:34]} 62. Ba4 {[%emt 0:00:33]} Kd6 {[%emt 0:00:10]} 63. Kg1 {[%emt 0:02:56]} Kc5 {[%emt 0:00:25]} 64. Kf1 {[%emt 0:00:15]} Kd4 {[%emt 0:00:36]} 65. Ke2 {[%emt 0:00:13]} Kc3 {[%emt 0:00:16]} 66. Ke3 {[%emt 0:00:08]} Kb4 {[%emt 0:00:13]} 67. Be8 {[%emt 0:00:21]} Kc5 {[%emt 0:00:07]} 68. f3 {[%emt 0:00:11]} Kd6 {[%emt 0:00:38]} 69. d4 {[%emt 0:00:10]} Ke6 {[%emt 0:00:14]} 70. Kd3 {[%emt 0:00:37]} Kd6 {[%emt 0:00:29]} 71. d5 {[%emt 0:00:33]} Kc5 {[%emt 0:00:09]} 72. Bf7 {[%emt 0:00:17]} Kd6 {[%emt 0:00:12]} 73. f4 {[%emt 0:00:56]} exf4 {[%emt 0:00:35]} 74. Be6 {[%emt 0:01:05]} Ke5 {[%emt 0:00:18]} 75. Bc8 {[%emt 0:00:38]} Kd6 {[%emt 0:01:05]} 76. Kd4 {[%emt 0:00:10]} Kc7 {[%emt 0:00:16]} 77. Ba6 {[%emt 0:00:11]} Kd6 {[%emt 0:00:12]} 78. e5+ {[%emt 0:00:11]} Ke7 {[%emt 0:00:14]} 79. d6+ {[%emt 0:00:08]} Kd7 {[%emt 0:00:57]} 80. Kd5 {[%emt 0:00:15]} f3 {[%emt 0:01:18]} 81. e6+ {[%emt 0:00:10]} Ke8 {[%emt 0:00:11]} 82. d7+ {[%emt 0:00:13]} Ke7 {[%emt 0:00:46]} 83. Ke5 {[%emt 0:00:22]} f2 {[%emt 0:00:16]} 84. Kf5 {[%emt 0:00:16]} f1=Q+ {[%emt 0:00:46]} 85. Bxf1 {[%emt 0:00:09]} Kd8 {[%emt 0:00:11]} 86. Kxg5 {[%emt 0:00:12]} Ke7 {[%emt 0:00:06]} 87. Kf4 {[%emt 0:00:12]} Kd8 {[%emt 0:00:42]} 88. g5 {[%emt 0:00:14]} Ke7 {[%emt 0:00:07]} 89. g6 {[%emt 0:00:08]} Kxe6 {[%emt 0:00:33]} 90. d8=Q {[%emt 0:00:15] normal} 1/2-1/2

[Event "DVM U12w 2023"]
[Site "Magdeburg"]
[Date "2023.12.29"]
[Round "6"]
[White "Fissler, Lieselotte"]
[Black "Poberezhna, Anna"]
[Result "1-0"]
[WhiteElo "786"]
[BlackElo "951"]
[PlyCount "85"]
[EventDate "2022.12.27"]
[EventType "team-tourn"]
[EventRounds "7"]
[EventCountry "GER"]
[TimeControl "40/5400+30:1800+30"]
[WhiteClock "0:48:11"]
[BlackClock "1:19:19"]

1. e4 {[%emt 0:00:02]} e5 {[%emt 0:00:01]} 2. Nf3 {[%emt 0:00:08]} Nc6 {[%emt 0:00:05]} 3. Bc4 {[%emt 0:00:08]} Bc5 {[%emt 0:00:04]} 4. d3 {[%emt 0:00:09]} h6 {[%emt 0:00:06]} 5. Nc3 {[%emt 0:00:12]} Nf6 {[%emt 0:00:07]} 6. Be3 {[%emt 0:00:11]} Bb6 {[%emt 0:00:06]} 7. Qd2 {[%emt 0:00:11]} d6 {[%emt 0:00:16]} 8. O-O-O {[%emt 0:00:19]} O-O {[%emt 0:00:28]} 9. h3 {[%emt 0:00:10]} Be6 {[%emt 0:00:21]} 10. g4 {[%emt 0:00:51]} d5 {[%emt 0:00:12]} 11. exd5 {[%emt 0:00:11]} Nxd5 {[%emt 0:00:08]} 12. Nxd5 {[%emt 0:00:37]} Bxd5 {[%emt 0:00:05]} 13. Bxd5 {[%emt 0:02:11]} Qxd5 {[%emt 0:00:07]} 14. Nh4 {[%emt 0:06:28]} Ba5 {[%emt 0:00:38]} 15. c3 {[%emt 0:04:13]} Qxa2 {[%emt 0:05:42]} 16. Qc2 {[%emt 0:01:33]} Rad8 {[%emt 0:00:39]} 17. Bc5 {[%emt 0:03:20]} Rfe8 {[%emt 0:01:07]} 18. Kd2 {[%emt 0:03:11]} e4 {[%emt 0:02:03]} 19. d4 {[%emt 0:01:57]} Nxd4 {[%emt 0:01:12]} 20. Bxd4 {[%emt 0:03:14]} Rxd4+ {[%emt 0:00:08]} 21. Kc1 {[%emt 0:01:21]} Rc4 {[%emt 0:02:11]} 22. f3 {[%emt 0:08:20]} Qa1+ {[%emt 0:00:53]} 23. Kd2 {[%emt 0:00:34]} Rd4+ {[%emt 0:00:59]} 24. Ke3 {[%emt 0:01:35]} Rd3+ {[%emt 0:00:39]} 25. Ke2 {[%emt 0:02:07]} exf3+ {[%emt 0:01:21]} 26. Kxd3 {[%emt 0:01:01]} Qa2 {[%emt 0:00:44]} 27. Nxf3 {[%emt 0:00:32]} Qd5+ {[%emt 0:00:29]} 28. Nd4 {[%emt 0:00:42]} b5 {[%emt 0:00:31]} 29. b3 {[%emt 0:00:58]} c5 {[%emt 0:01:49]} 30. Qf2 {[%emt 0:02:23]} Rd8 {[%emt 0:01:15]} 31. Kc2 {[%emt 0:00:46]} c4 {[%emt 0:00:51]} 32. Nc6 {[%emt 0:01:38]} Qxc6 {[%emt 0:00:10]} 33. Rxd8+ {[%emt 0:00:38]} Bxd8 {[%emt 0:00:07]} 34. Rd1 {[%emt 0:00:32]} Bc7 {[%emt 0:01:33]} 35. Rf1 {[%emt 0:01:10]} Qe4+ {[%emt 0:00:56]} 36. Kb2 {[%emt 0:00:27]} Qe6 {[%emt 0:00:32]} 37. Re1 {[%emt 0:01:34]} Qd5 {[%emt 0:00:23]} 38. Re8+ {[%emt 0:00:19]} Kh7 {[%emt 0:00:15]} 39. Qc2+ {[%emt 0:00:16]} g6 {[%emt 0:00:02]} 40. b4 {[%emt 0:01:35]} Qh1 {[%emt 0:01:21]} 41. Qd2 {[%emt 0:34:40]} Qxh3 {[%emt 0:30:52]} 42. Qd4 {[%emt 0:00:38]} a5 {[%emt 0:00:43]} 43. Qh8# {[%emt 0:00:47] normal} 1-0

[Event "DVM U12w 2023"]
[Site "Magdeburg"]
[Date "2023.12.29"]
[Round "6"]
[White "Lehmann, Clara Theres"]
[Black "Nehrukumar, Rithika"]
[Result "1/2-1/2"]
[WhiteElo "781"]
[BlackElo "989"]
[PlyCount "44"]
[EventDate "2022.12.27"]
[EventType "team-tourn"]
[EventRounds "7"]
[EventCountry "GER"]
[TimeControl "40/5400+30:1800+30"]
[WhiteClock "1:23:07"]
[BlackClock "1:20:04"]

1. d4 {[%emt 0:00:01]} d5 {[%emt 0:00:10]} 2. Nc3 {[%emt 0:00:03]} Nc6 {[%emt 0:01:10]} 3. Bf4 {[%emt 0:00:10]} Nf6 {[%emt 0:00:17]} 4. Nb5 {[%emt 0:00:09]} e5 {[%emt 0:01:05]} 5. dxe5 {[%emt 0:00:41]} Ne4 {[%emt 0:00:26]} 6. f3 {[%emt 0:00:16]} Nc5 {[%emt 0:00:24]} 7. Qxd5 {[%emt 0:00:12]} a6 {[%emt 0:00:56]} 8. Qxd8+ {[%emt 0:00:41]} Nxd8 {[%emt 0:00:12]} 9. Nc3 {[%emt 0:00:11]} Bf5 {[%emt 0:00:42]} 10. g4 {[%emt 0:00:18]} Bxc2 {[%emt 0:00:23]} 11. e3 {[%emt 0:01:27]} Bd3 {[%emt 0:01:08]} 12. O-O-O {[%emt 0:00:44]} Bxf1 {[%emt 0:00:34]} 13. Rxf1 {[%emt 0:00:06]} Nd3+ {[%emt 0:00:30]} 14. Kb1 {[%emt 0:00:17]} Ne6 {[%emt 0:01:15]} 15. Nge2 {[%emt 0:00:15]} O-O-O {[%emt 0:01:11]} 16. Rd1 {[%emt 0:02:27]} Bb4 {[%emt 0:00:09]} 17. Ne4 {[%emt 0:03:15]} Rd7 {[%emt 0:03:27]} 18. a3 {[%emt 0:05:05]} Be7 {[%emt 0:00:17]} 19. Rd2 {[%emt 0:00:52]} Rhd8 {[%emt 0:00:27]} 20. Rhd1 {[%emt 0:00:11]} g6 {[%emt 0:00:41]} 21. g5 {[%emt 0:00:37]} Nexf4 {[%emt 0:03:43]} 22. exf4 {[%emt 0:00:25]} Bc5 {[%emt 0:02:19] normal} 1/2-1/2

[Event "DVM U12w 2023"]
[Site "Magdeburg"]
[Date "2023.12.30"]
[Round "7"]
[White "Schirmbeck, Lilian"]
[Black "John, Linnea"]
[Result "1-0"]
[WhiteElo "1585"]
[BlackElo "1393"]
[PlyCount "33"]
[EventDate "2022.12.27"]
[EventType "team-tourn"]
[EventRounds "7"]
[EventCountry "GER"]
[TimeControl "40/5400+30:1800+30"]
[WhiteClock "0:46:28"]
[BlackClock "0:40:46"]

1. d4 {[%emt 0:00:02]} d5 {[%emt 0:00:07]} 2. Nf3 {[%emt 0:00:04]} Nf6 {[%emt 0:00:07]} 3. g3 {[%emt 0:00:03]} e6 {[%emt 0:00:08]} 4. Bg2 {[%emt 0:00:04]} Bb4+ {[%emt 0:00:45]} 5. c3 {[%emt 0:00:19]} Be7 {[%emt 0:00:17]} 6. O-O {[%emt 0:00:26]} Nbd7 {[%emt 0:01:02]} 7. Bf4 {[%emt 0:02:25]} c6 {[%emt 0:02:07]} 8. Nbd2 {[%emt 0:03:09]} O-O {[%emt 0:00:43]} 9. Re1 {[%emt 0:10:59]} Nh5 {[%emt 0:05:56]} 10. e4 {[%emt 0:02:21]} Nxf4 {[%emt 0:02:52]} 11. gxf4 {[%emt 0:00:06]} Nf6 {[%emt 0:06:50]} 12. Ne5 {[%emt 0:01:23]} Qc7 {[%emt 0:08:17]} 13. Re3 {[%emt 0:06:00]} g6 {[%emt 0:10:23]} 14. Rg3 {[%emt 0:16:57]} Nh5 {[%emt 0:02:21]} 15. Qxh5 {[%emt 0:04:37]} Kh8 {[%emt 0:04:56]} 16. Qh6 {[%emt 0:02:11]} Bh4 {[%emt 0:10:53]} 17. Qxf8# {[%emt 0:01:26] normal} 1-0